fUSD/lending_fUSD_20250720
["ID","MTS","AMOUNT","RATE_DAILY","PERIOD"]
[373570843,1753048248516,-717.33,0.00019178,2]
[373570845,1753048248525,-480.0,0.00019178,2]
[373570847,1753048248536,-480.0,0.00019178,2]
[373570850,1753048248545,-480.0,0.00019178,2]
[373570852,1753048248555,-480.0,0.00019178,2]
[373570853,1753048248564,-480.0,0.00019178,2]
[373570855,1753048248573,-1087.28,0.00019178,2]
[373570857,1753048248583,-480.0,0.00019178,2]
[373570859,1753048248592,-480.0,0.00019178,2]
[373570861,1753048248601,-252.76303703,0.00019178,2]
[373570863,1753048248611,-480.0,0.00019178,2]
[373570865,1753048248619,-480.0,0.00019178,2]
[373570867,1753048248628,-1360.0,0.00019178,2]
[373570869,1753048248638,-242.0287042,0.00019178,2]
[373570871,1753048248647,-480.0,0.00019178,2]
[373570873,1753048248656,-480.0,0.00019178,2]
[373570875,1753048248666,-467.21,0.00019178,2]
[373570877,1753048248675,-496.16,0.00019178,2]
[373570879,1753048248684,-586.77659689,0.00019178,2]
[373570881,1753048248693,-480.0,0.00019178,2]
[373570883,1753048248702,-2485.58,0.00019178,2]
[373570885,1753048248712,-604.06,0.00019178,2]
[373570887,1753048248721,-480.0,0.00019178,2]
[373570889,1753048248730,-480.0,0.00019178,2]
[373570891,1753048248740,-480.0,0.00019178,2]
[373570893,1753048248749,-480.0,0.00019178,2]
[373570895,1753048248758,-2381.1,0.00019178,2]
[373570897,1753048248768,-480.0,0.00019178,2]
[373570899,1753048248777,-464.87252394,0.00019178,2]
[373570901,1753048248787,-806.7,0.00019178,2]
[373570903,1753048248797,-480.0,0.00019178,2]
[373570905,1753048248806,-480.0,0.00019178,2]
[373570907,1753048248816,-460.0,0.00019178,2]
[373570909,1753048248825,-480.0,0.00019178,2]
[373570911,1753048248835,-480.0,0.00019178,2]
[373570913,1753048248844,-480.0,0.00019178,2]
[373570915,1753048248853,-630.25,0.00019178,2]
[373570917,1753048248863,-847.75,0.00019178,2]
[373570919,1753048248872,-598.44257589,0.00019178,2]
[373570921,1753048248881,-565.78,0.00019178,2]
[373570923,1753048248890,-480.0,0.00019178,2]
[373570925,1753048248900,-466.52320049,0.00019178,2]
[373570927,1753048248909,-480.0,0.00019178,2]
[373570929,1753048248918,-480.0,0.00019178,2]
[373570931,1753048248928,-1011.53,0.00019178,2]
[373570933,1753048248937,-497.84264423,0.00019178,2]
[373570935,1753048248949,-480.0,0.00019178,2]
[373570937,1753048248958,-482.33604792,0.00019178,2]
[373570939,1753048248968,-480.0,0.00019178,2]
[373570941,1753048248979,-480.0,0.00019178,2]
[373570943,1753048248989,-461.56984299,0.00019178,2]
[373570945,1753048248999,-3734.49,0.00019178,2]
[373570946,1753048249008,-480.0,0.00019178,2]
[373570949,1753048249019,-480.0,0.00019178,2]
[373570951,1753048249028,-1499.55,0.00019178,2]
[373570953,1753048249038,-588.93,0.00019178,2]
[373570954,1753048249048,-480.0,0.00019178,2]
[373570957,1753048249058,-850.22,0.00019178,2]
[373570959,1753048249067,-480.0,0.00019178,2]
[373570961,1753048249077,-480.0,0.00019178,2]
[373570962,1753048249087,-809.48,0.00019178,2]
[373570965,1753048249097,-480.0,0.00019178,2]
[373570967,1753048249107,-480.0,0.00019178,2]
[373570969,1753048249116,-480.0,0.00019178,2]
[373570971,1753048249126,-464.38756091,0.00019178,2]
[373570973,1753048249135,-601.96352567,0.00019178,2]
[373570975,1753048249145,-480.0,0.00019178,2]
[373570977,1753048249154,-480.0,0.00019178,2]
[373570979,1753048249163,-480.0,0.00019178,2]
[373570980,1753048249172,-480.0,0.00019178,2]
[373570982,1753048249181,-480.0,0.00019178,2]
[373570984,1753048249190,-480.0,0.00019178,2]
[373570986,1753048249200,-480.0,0.00019178,2]
[373570988,1753048249209,-480.0,0.00019178,2]
[373570990,1753048249219,-1226.49,0.00019178,2]
[373570992,1753048249229,-480.0,0.00019178,2]
[373570994,1753048249239,-480.0,0.00019178,2]
[373570996,1753048249248,-480.0,0.00019178,2]
[373570998,1753048249257,-480.0,0.00019178,2]
[373571000,1753048249267,-480.0,0.00019178,2]
[373571002,1753048249276,-558.57,0.00019178,2]
[373571004,1753048249285,-1640.5,0.00019178,2]
[373571006,1753048249295,-782.56,0.00019178,2]
[373571008,1753048249304,-480.0,0.00019178,2]
[373571010,1753048249313,-480.0,0.00019178,2]
[373571012,1753048249322,-6822.51,0.00019178,2]
[373571014,1753048249331,-1995.6,0.00019178,2]
[373571016,1753048249340,-480.0,0.00019178,2]
[373571018,1753048249349,-480.0,0.00019178,2]
[373571020,1753048249359,-480.0,0.00019178,2]
[373571022,1753048249368,-280.76174591,0.00019178,2]
[373571024,1753048249377,-480.0,0.00019178,2]
[373571026,1753048249386,-480.0,0.00019178,2]
[373571028,1753048249395,-480.0,0.00019178,2]
[373571030,1753048249404,-1871.2,0.00019178,2]
[373571032,1753048249414,-548.28493674,0.00019178,2]
[373571034,1753048249423,-568.16,0.00019178,2]
[373571036,1753048249432,-590.29,0.00019178,2]
[373571038,1753048249442,-440.0,0.00019178,2]
[373571040,1753048249451,-151.0,0.00019178,2]
[373571042,1753048249460,-480.0,0.00019178,2]
[373571044,1753048249470,-480.0,0.00019178,2]
[373571047,1753048249480,-480.0,0.00019178,2]
[373571048,1753048249494,-480.0,0.00019178,2]
[373571050,1753048249505,-480.0,0.00019178,2]
[373571052,1753048249515,-480.0,0.00019178,2]
[373571055,1753048249525,-480.0,0.00019178,2]
[373571057,1753048249535,-876.52,0.00019178,2]
[373571059,1753048249544,-1540.06,0.00019178,2]
[373571061,1753048249553,-480.0,0.00019178,2]
[373571063,1753048249566,-480.0,0.00019178,2]
[373571064,1753048249575,-480.0,0.00019178,2]
[373571067,1753048249585,-480.0,0.00019178,2]
[373571068,1753048249595,-480.0,0.00019178,2]
[373571070,1753048249605,-480.0,0.00019178,2]
[373571073,1753048249614,-480.0,0.00019178,2]
[373571074,1753048249623,-480.0,0.00019178,2]
[373571077,1753048249633,-436.52081962,0.00019178,2]
[373571079,1753048249642,-1913.56,0.00019178,2]
[373571081,1753048249652,-1291.5,0.00019178,2]
[373571083,1753048249661,-480.0,0.00019178,2]
[373571085,1753048249670,-480.0,0.00019178,2]
[373571087,1753048249679,-496.73,0.00019178,2]
[373571089,1753048249689,-480.0,0.00019178,2]
[373571091,1753048249699,-1623.46,0.00019178,2]
[373571093,1753048249707,-480.0,0.00019178,2]
[373571095,1753048249717,-480.0,0.00019178,2]
[373571097,1753048249726,-471.08027074,0.00019178,2]
[373571099,1753048249735,-300.0,0.00019178,2]
[373571101,1753048249745,-480.0,0.00019178,2]
[373571103,1753048249754,-480.0,0.00019178,2]
[373571105,1753048249763,-864.7,0.00019178,2]
[373571106,1753048249772,-1490.76,0.00019178,2]
[373571108,1753048249781,-463.50212109,0.00019178,2]
[373571110,1753048249790,-480.0,0.00019178,2]
[373571112,1753048249799,-480.0,0.00019178,2]
[373571114,1753048249808,-480.0,0.00019178,2]
[373571116,1753048249817,-2231.3,0.00019178,2]
[373571118,1753048249826,-480.0,0.00019178,2]
[373571119,1753048249835,-480.0,0.00019178,2]
[373571120,1753048249845,-493.86,0.00019178,2]
[373571121,1753048249854,-480.0,0.00019178,2]
[373571122,1753048249863,-480.0,0.00019178,2]
[373571123,1753048249872,-502.98,0.00019178,2]
[373571124,1753048249881,-480.0,0.00019178,2]
[373571125,1753048249890,-480.0,0.00019178,2]
[373571126,1753048249900,-480.0,0.00019178,2]
[373571127,1753048249910,-480.0,0.00019178,2]
[373571128,1753048249922,-480.0,0.00019178,2]
[373571129,1753048249934,-480.0,0.00019178,2]
[373571131,1753048249944,-500.0,0.00019178,2]
[373571133,1753048249953,-480.0,0.00019178,2]
[373571135,1753048249963,-1390.69,0.00019178,2]
[373571137,1753048249972,-333.68716143,0.00019178,2]
[373571139,1753048249981,-480.0,0.00019178,2]
[373571141,1753048249990,-480.0,0.00019178,2]
[373571143,1753048250001,-493.03493162,0.00019178,2]
[373571145,1753048250010,-1457.3,0.00019178,2]
[373571147,1753048250019,-480.0,0.00019178,2]
[373571149,1753048250029,-1469.55,0.00019178,2]
[373571151,1753048250038,-480.0,0.00019178,2]
[373571153,1753048250048,-3363.64,0.00019178,2]
[373571155,1753048250057,-646.02,0.00019178,2]
[373571157,1753048250066,-2058.33,0.00019178,2]
[373571159,1753048250077,-480.0,0.00019178,2]
[373571161,1753048250086,-480.0,0.00019178,2]
[373571163,1753048250096,-450.35,0.00019178,2]
[373571165,1753048250106,-653.86,0.00019178,2]
[373571191,1753048250316,-480.0,0.00019178,2]
[373571194,1753048250352,-480.0,0.00019178,2]
[373571196,1753048250362,-480.0,0.00019178,2]
[373571198,1753048250371,-782.86,0.00019178,2]
[373571200,1753048250381,-480.0,0.00019178,2]
[373571202,1753048250391,-480.0,0.00019178,2]
[373571204,1753048250400,-470.28298749,0.00019178,2]
[373571206,1753048250410,-480.0,0.00019178,2]
[373571208,1753048250420,-461.83664316,0.00019178,2]
[373571210,1753048250429,-480.0,0.00019178,2]
[373571212,1753048250439,-1219.8,0.00019178,2]
[373571214,1753048250448,-480.0,0.00019178,2]
[373571216,1753048250458,-480.0,0.00019178,2]
[373571218,1753048250467,-3357.15,0.00019178,2]
[373571220,1753048250477,-480.0,0.00019178,2]
[373571222,1753048250489,-1819.84,0.00019178,2]
[373571224,1753048250498,-1500.84,0.00019178,2]
[373571226,1753048250508,-480.0,0.00019178,2]
[373571228,1753048250518,-480.0,0.00019178,2]
[373571230,1753048250527,-480.0,0.00019178,2]
[373571232,1753048250538,-659.51,0.00019178,2]
[373571234,1753048250548,-480.0,0.00019178,2]
[373571236,1753048250558,-3186.46,0.00019178,2]
[373571238,1753048250570,-480.0,0.00019178,2]
[373571240,1753048250580,-480.0,0.00019178,2]
[373571242,1753048250590,-704.05,0.00019178,2]
[373571244,1753048250599,-573.09684395,0.00019178,2]
[373571246,1753048250608,-2260.28,0.00019178,2]
[373571248,1753048250618,-461.19596866,0.00019178,2]
[373571250,1753048250627,-1720.52,0.00019178,2]
[373571252,1753048250637,-480.0,0.00019178,2]
[373571254,1753048250646,-480.0,0.00019178,2]
[373571256,1753048250655,-295.02949667,0.00019178,2]
[373571258,1753048250664,-480.0,0.00019178,2]
[373571260,1753048250674,-431.90951102,0.00019178,2]
[373571262,1753048250684,-480.0,0.00019178,2]
[373571264,1753048250694,-619.38131921,0.00019178,2]
[373571266,1753048250703,-480.0,0.00019178,2]
[373571268,1753048250713,-480.0,0.00019178,2]
[373571270,1753048250722,-968.17,0.00019178,2]
[373571272,1753048250731,-480.0,0.00019178,2]
[373571274,1753048250741,-1380.04,0.00019178,2]
[373571276,1753048250751,-4856.44,0.00019178,2]
[373571278,1753048250760,-2958.95,0.00019178,2]
[373571280,1753048250770,-480.0,0.00019178,2]
[373571282,1753048250779,-480.0,0.00019178,2]
[373571284,1753048250789,-2189.88,0.00019178,2]
[373571286,1753048250799,-480.0,0.00019178,2]
[373571288,1753048250811,-1076.58,0.00019178,2]
[373571290,1753048250820,-7227.64,0.00019178,2]
[373571292,1753048250829,-480.0,0.00019178,2]
[373571294,1753048250839,-480.0,0.00019178,2]
[373571296,1753048250848,-554.1,0.00019178,2]
[373571298,1753048250858,-655.85,0.00019178,2]
[373571300,1753048250867,-480.0,0.00019178,2]
[373571303,1753048250877,-480.0,0.00019178,2]
[373571305,1753048250887,-480.0,0.00019178,2]
[373571307,1753048250896,-480.0,0.00019178,2]
[373571309,1753048250906,-480.0,0.00019178,2]
[373571311,1753048250915,-480.0,0.00019178,2]
[373571313,1753048250924,-222.69506607,0.00019178,2]
[373571315,1753048250933,-607.90511581,0.00019178,2]
[373571317,1753048250943,-3371.55,0.00019178,2]
[373571319,1753048250952,-1814.44,0.00019178,2]
[373571321,1753048250962,-1739.22,0.00019178,2]
[373571323,1753048250972,-1709.07,0.00019178,2]
[373571325,1753048250982,-634.29,0.00019178,2]
[373571327,1753048250991,-2555.49,0.00019178,2]
[373571329,1753048251000,-1285.71,0.00019178,2]
[373571331,1753048251010,-500.0,0.00019178,2]
[373571333,1753048251019,-480.0,0.00019178,2]
[373571335,1753048251029,-460.0,0.00019178,2]
[373571337,1753048251040,-480.0,0.00019178,2]
[373571339,1753048251053,-480.0,0.00019178,2]
[373571341,1753048251063,-480.0,0.00019178,2]
[373571343,1753048251072,-480.0,0.00019178,2]
[373571345,1753048251082,-480.0,0.00019178,2]
[373571347,1753048251092,-480.0,0.00019178,2]
[373571349,1753048251102,-480.0,0.00019178,2]
[373571351,1753048251112,-2800.53,0.00019178,2]
[373571353,1753048251122,-480.0,0.00019178,2]
[373571355,1753048251131,-480.0,0.00019178,2]
[373571357,1753048251141,-1904.54,0.00019178,2]
[373571359,1753048251151,-2056.21,0.00019178,2]
[373571361,1753048251160,-480.0,0.00019178,2]
[373571363,1753048251170,-615.0,0.00019178,2]
[373571365,1753048251179,-2631.21,0.00019178,2]
[373571366,1753048251188,-480.0,0.00019178,2]
[373571368,1753048251198,-480.0,0.00019178,2]
[373571371,1753048251208,-480.0,0.00019178,2]
[373571373,1753048251220,-480.0,0.00019178,2]
[373571375,1753048251237,-440.0,0.00019178,2]
[373571377,1753048251246,-480.0,0.00019178,2]
[373571379,1753048251256,-500.0,0.00019178,2]
[373571381,1753048251266,-480.0,0.00019178,2]
[373571383,1753048251276,-480.0,0.00019178,2]
[373571385,1753048251285,-480.0,0.00019178,2]
[373571387,1753048251295,-480.0,0.00019178,2]
[373571389,1753048251305,-480.0,0.00019178,2]
[373571391,1753048251315,-1036.53,0.00019178,2]
[373571393,1753048251325,-480.0,0.00019178,2]
[373571395,1753048251334,-793.86,0.00019178,2]
[373571397,1753048251344,-884.81,0.00019178,2]
[373571399,1753048251353,-480.0,0.00019178,2]
[373571401,1753048251362,-4938.68,0.00019178,2]
[373571403,1753048251372,-480.0,0.00019178,2]
[373571405,1753048251381,-480.0,0.00019178,2]
[373571407,1753048251390,-480.0,0.00019178,2]
[373571408,1753048251400,-837.91,0.00019178,2]
[373571411,1753048251410,-480.0,0.00019178,2]
[373571413,1753048251420,-416.69797821,0.00019178,2]
[373571414,1753048251430,-480.0,0.00019178,2]
[373571417,1753048251440,-1115.86,0.00019178,2]
[373571419,1753048251449,-508.97,0.00019178,2]
[373571421,1753048251458,-480.0,0.00019178,2]
[373571423,1753048251467,-460.0,0.00019178,2]
[373571425,1753048251477,-480.0,0.00019178,2]
[373571427,1753048251489,-480.0,0.00019178,2]
[373571428,1753048251501,-480.0,0.00019178,2]
[373571430,1753048251511,-480.0,0.00019178,2]
[373571433,1753048251521,-480.0,0.00019178,2]
[373571435,1753048251530,-1105.92,0.00019178,2]
[373571437,1753048251540,-480.0,0.00019178,2]
[373571439,1753048251549,-500.0,0.00019178,2]
[373571441,1753048251558,-549.53,0.00019178,2]
[373571443,1753048251568,-480.0,0.00019178,2]
[373571445,1753048251578,-480.0,0.00019178,2]
[373571447,1753048251587,-480.0,0.00019178,2]
[373571448,1753048251596,-821.57,0.00019178,2]
[373571450,1753048251605,-480.0,0.00019178,2]
[373571452,1753048251614,-480.0,0.00019178,2]
[373571454,1753048251623,-1652.54,0.00019178,2]
[373571456,1753048251633,-2336.3,0.00019178,2]
[373571459,1753048251642,-480.0,0.00019178,2]
[373571461,1753048251652,-480.0,0.00019178,2]
[373571463,1753048251661,-480.0,0.00019178,2]
[373571465,1753048251670,-1039.8,0.00019178,2]
[373571467,1753048251679,-5424.92,0.00019178,2]
[373571469,1753048251688,-480.0,0.00019178,2]
[373571471,1753048251698,-480.0,0.00019178,2]
[373571473,1753048251708,-480.0,0.00019178,2]
[373571475,1753048251717,-480.0,0.00019178,2]
[373571477,1753048251726,-480.0,0.00019178,2]
[373571479,1753048251735,-382.69256848,0.00019178,2]
[373571481,1753048251744,-1010.69,0.00019178,2]
[373571483,1753048251753,-480.0,0.00019178,2]
[373571485,1753048251763,-481.14667423,0.00019178,2]
[373571487,1753048251772,-1244.16,0.00019178,2]
[373571489,1753048251781,-480.0,0.00019178,2]
[373571491,1753048251790,-480.0,0.00019178,2]
[373571493,1753048251799,-480.0,0.00019178,2]
[373571495,1753048251808,-480.0,0.00019178,2]
[373571497,1753048251817,-631.4,0.00019178,2]
[373571498,1753048251826,-867.12,0.00019178,2]
[373571501,1753048251838,-480.0,0.00019178,2]
[373571503,1753048251847,-151.0,0.00019178,2]
[373571505,1753048251856,-480.0,0.00019178,2]
[373571507,1753048251865,-480.0,0.00019178,2]
[373571509,1753048251874,-480.0,0.00019178,2]
[373571511,1753048251883,-480.0,0.00019178,2]
[373571513,1753048251893,-480.0,0.00019178,2]
[373571514,1753048251902,-480.0,0.00019178,2]
[373571517,1753048251911,-480.0,0.00019178,2]
[373571519,1753048251921,-972.59,0.00019178,2]
[373571521,1753048251930,-4571.29,0.00019178,2]
[373571523,1753048251940,-863.54,0.00019178,2]
[373571525,1753048251949,-480.0,0.00019178,2]
[373571526,1753048251958,-480.0,0.00019178,2]
[373571529,1753048251967,-2575.01,0.00019178,2]
[373571530,1753048251977,-888.37,0.00019178,2]
[373571532,1753048251987,-480.0,0.00019178,2]
[373571535,1753048251996,-513.99,0.00019178,2]
[373571536,1753048252006,-480.0,0.00019178,2]
[373571538,1753048252015,-801.21,0.00019178,2]
[373571540,1753048252024,-7396.73,0.00019178,2]
[373571542,1753048252034,-2576.87,0.00019178,2]
[373571544,1753048252043,-460.0,0.00019178,2]
[373571546,1753048252052,-589.75,0.00019178,2]
[373571548,1753048252062,-480.0,0.00019178,2]
[373571550,1753048252071,-460.0,0.00019178,2]
[373571552,1753048252080,-480.0,0.00019178,2]
[373571555,1753048252089,-480.0,0.00019178,2]
[373571557,1753048252099,-480.0,0.00019178,2]
[373571559,1753048252108,-732.02,0.00019178,2]
[373571561,1753048252117,-480.56385747,0.00019178,2]
[373571563,1753048252127,-480.0,0.00019178,2]
[373571565,1753048252136,-480.0,0.00019178,2]
[373571567,1753048252145,-480.0,0.00019178,2]
[373571569,1753048252154,-480.0,0.00019178,2]
[373571571,1753048252164,-1816.29,0.00019178,2]
[373571573,1753048252173,-898.65,0.00019178,2]
[373571575,1753048252182,-480.0,0.00019178,2]
[373571577,1753048252191,-968.78,0.00019178,2]
[373571579,1753048252200,-1559.5,0.00019178,2]
[373571581,1753048252210,-480.0,0.00019178,2]
[373571583,1753048252219,-480.0,0.00019178,2]
[373571585,1753048252229,-480.0,0.00019178,2]
[373571587,1753048252239,-480.0,0.00019178,2]
[373571589,1753048252248,-1380.55,0.00019178,2]
[373571591,1753048252257,-480.0,0.00019178,2]
[373571593,1753048252266,-1570.09,0.00019178,2]
[373571595,1753048252276,-353.10041519,0.00019178,2]
[373571597,1753048252288,-1229.72,0.00019178,2]
[373571599,1753048252298,-480.0,0.00019178,2]
[373571601,1753048252308,-480.0,0.00019178,2]
[373571603,1753048252317,-641.12,0.00019178,2]
[373571605,1753048252327,-589.54,0.00019178,2]
[373571607,1753048252343,-1612.75,0.00019178,2]
[373571609,1753048252353,-480.0,0.00019178,2]
[373571611,1753048252362,-480.0,0.00019178,2]
[373571612,1753048252372,-480.0,0.00019178,2]
[373571613,1753048252381,-480.0,0.00019178,2]
[373571614,1753048252391,-480.0,0.00019178,2]
[373571615,1753048252401,-912.21,0.00019178,2]
[373571616,1753048252410,-5279.9,0.00019178,2]
[373571617,1753048252419,-1441.14,0.00019178,2]
[373571618,1753048252428,-480.0,0.00019178,2]
[373571619,1753048252437,-480.0,0.00019178,2]
[373571620,1753048252445,-500.0,0.00019178,2]
[373571621,1753048252455,-480.0,0.00019178,2]
[373571622,1753048252464,-463.58907711,0.00019178,2]
[373571624,1753048252473,-480.0,0.00019178,2]
[373571625,1753048252483,-151.0,0.00019178,2]
[373571627,1753048252495,-1211.17,0.00019178,2]
[373571629,1753048252505,-460.0,0.00019178,2]
[373571631,1753048252514,-541.65,0.00019178,2]
[373571634,1753048252524,-500.0,0.00019178,2]
[373571635,1753048252534,-500.0,0.00019178,2]
[373571637,1753048252544,-2347.91,0.00019178,2]
[373571640,1753048252553,-480.0,0.00019178,2]
[373571642,1753048252563,-480.0,0.00019178,2]
[373571644,1753048252572,-799.97,0.00019178,2]
[373571646,1753048252582,-556.05,0.00019178,2]
[373571648,1753048252591,-480.0,0.00019178,2]
[373571650,1753048252600,-670.25,0.00019178,2]
[373571652,1753048252609,-480.0,0.00019178,2]
[373571654,1753048252619,-480.0,0.00019178,2]
[373571656,1753048252628,-802.61,0.00019178,2]
[373571658,1753048252637,-460.83650164,0.00019178,2]
[373571660,1753048252646,-1043.64,0.00019178,2]
[373571662,1753048252655,-999.04,0.00019178,2]
[373571664,1753048252664,-578.57,0.00019178,2]
[373571675,1753048252760,-1500.02,0.00019178,2]
[373571677,1753048252770,-480.0,0.00019178,2]
[373571679,1753048252778,-480.0,0.00019178,2]
[373571681,1753048252787,-4408.95,0.00019178,2]
[373571683,1753048252796,-151.0,0.00019178,2]
[373571685,1753048252805,-480.0,0.00019178,2]
[373571687,1753048252814,-480.0,0.00019178,2]
[373571689,1753048252823,-480.0,0.00019178,2]
[373571691,1753048252833,-485.05,0.00019178,2]
[373571693,1753048252841,-480.0,0.00019178,2]
[373571695,1753048252850,-625.84,0.00019178,2]
[373571697,1753048252859,-1225.66,0.00019178,2]
[373571699,1753048252869,-480.0,0.00019178,2]
[373571701,1753048252877,-460.0,0.00019178,2]
[373571703,1753048252886,-480.0,0.00019178,2]
[373571705,1753048252895,-480.0,0.00019178,2]
[373571707,1753048252904,-480.0,0.00019178,2]
[373571709,1753048252914,-480.0,0.00019178,2]
[373571711,1753048252923,-1627.24,0.00019178,2]
[373571712,1753048252932,-7729.05,0.00019178,2]
[373571714,1753048252942,-480.0,0.00019178,2]
[373571716,1753048252951,-480.0,0.00019178,2]
[373571718,1753048252960,-2754.54,0.00019178,2]
[373571720,1753048252969,-480.0,0.00019178,2]
[373571722,1753048252978,-480.0,0.00019178,2]
[373571724,1753048252987,-2091.62,0.00019178,2]
[373571726,1753048252996,-480.0,0.00019178,2]
[373571728,1753048253006,-954.65,0.00019178,2]
[373571730,1753048253016,-1000.0,0.00019178,5]
[373571732,1753048253025,-302.4102417,0.00019178,2]
[373571734,1753048253034,-480.0,0.00019178,2]
[373571736,1753048253043,-8533.15,0.00019178,2]
[373571738,1753048253052,-480.0,0.00019178,2]
[373571740,1753048253062,-480.0,0.00019178,2]
[373571742,1753048253071,-460.0,0.00019178,2]
[373571744,1753048253081,-2531.83,0.00019178,2]
[373571746,1753048253090,-460.0,0.00019178,2]
[373571748,1753048253099,-460.0,0.00019178,2]
[373571750,1753048253108,-480.0,0.00019178,2]
[373571752,1753048253118,-460.0,0.00019178,2]
[373571754,1753048253127,-709.76,0.00019178,2]
[373571756,1753048253136,-480.0,0.00019178,2]
[373571758,1753048253146,-480.0,0.00019178,2]
[373571760,1753048253155,-460.0,0.00019178,2]
[373571762,1753048253164,-528.19,0.00019178,2]
[373571764,1753048253173,-480.0,0.00019178,2]
[373571766,1753048253183,-480.0,0.00019178,2]
[373571768,1753048253192,-3616.35,0.00019178,2]
[373571770,1753048253201,-6569.58,0.00019178,2]
[373571772,1753048253211,-480.0,0.00019178,2]
[373571774,1753048253221,-1331.52,0.00019178,2]
[373571776,1753048253231,-480.0,0.00019178,2]
[373571778,1753048253240,-480.0,0.00019178,2]
[373571780,1753048253249,-480.0,0.00019178,2]
[373571782,1753048253259,-480.0,0.00019178,2]
[373571784,1753048253271,-460.0,0.00019178,2]
[373571786,1753048253280,-2961.02,0.00019178,2]
[373571788,1753048253290,-460.0,0.00019178,2]
[373571790,1753048253299,-299.56842846,0.00019178,2]
[373571792,1753048253308,-480.0,0.00019178,2]
[373571794,1753048253317,-151.0,0.00019178,2]
[373571796,1753048253326,-480.0,0.00019178,2]
[373571798,1753048253335,-460.0,0.00019178,2]
[373571800,1753048253344,-480.0,0.00019178,2]
[373571802,1753048253353,-480.0,0.00019178,2]
[373571804,1753048253362,-480.0,0.00019178,2]
[373571806,1753048253372,-480.0,0.00019178,2]
[373571807,1753048253381,-480.0,0.00019178,2]
[373571809,1753048253391,-480.0,0.00019178,2]
[373571811,1753048253400,-480.0,0.00019178,2]
[373571813,1753048253409,-480.0,0.00019178,2]
[373571815,1753048253418,-480.0,0.00019178,2]
[373571817,1753048253428,-476.50177871,0.00019178,2]
[373571819,1753048253437,-480.0,0.00019178,2]
[373571821,1753048253446,-500.0,0.00019178,2]
[373571823,1753048253455,-500.0,0.00019178,2]
[373571825,1753048253465,-2741.92,0.00019178,2]
[373571827,1753048253474,-500.0,0.00019178,2]
[373571829,1753048253484,-500.0,0.00019178,2]
[373571831,1753048253495,-193.68493627,0.00019178,2]
[373571881,1753048253966,-776.1447,0.00019078,2]
[373571883,1753048253976,-306.31506373,0.00019178,2]
[373571885,1753048253986,-480.0,0.00019178,2]
[373571887,1753048253996,-480.0,0.00019178,2]
[373571889,1753048254006,-462.12705448,0.00019178,2]
[373571891,1753048254016,-480.66701341,0.00019178,2]
[373571894,1753048254025,-480.0,0.00019178,2]
[373571896,1753048254034,-480.0,0.00019178,2]
[373571897,1753048254044,-460.0,0.00019178,2]
[373571899,1753048254054,-480.0,0.00019178,2]